bitfinex/quotes_ETHUSD_20241018
["timestamp","ask_amount","ask_price","bid_price","bid_amount"]
[1729287731083,0.79284251,2645.2,2644.9,0.55]
[1729287731282,0.28330558,2645.1,2644.9,0.55]
[1729287731506,0.79284251,2645.2,2644.9,0.55]
[1729287731720,0.2833044,2645.1,2644.9,0.55]
[1729287732009,0.79284251,2645.2,2644.9,0.55]
[1729287732309,0.28330445,2645.1,2644.9,0.55]
[1729287732504,0.79284251,2645.2,2644.9,0.55]
[1729287732704,0.28330431,2645.1,2644.9,0.55]
[1729287732911,0.79284251,2645.2,2644.9,0.55]
[1729287733271,0.28330259,2645.1,2644.9,0.55]
[1729287733471,0.28330548,2645.0,2644.9,0.55]
[1729287733681,0.79284251,2645.2,2644.9,0.55]
[1729287733885,0.2833074,2645.1,2644.9,0.55]
[1729287734211,0.79284251,2645.2,2644.9,0.55]
[1729287734382,0.28330664,2645.1,2644.9,0.55]
[1729287734615,0.79284251,2645.2,2644.9,0.55]
[1729287734799,0.28330916,2645.1,2644.9,0.55]
[1729287735002,0.79284251,2645.2,2644.9,0.55]
[1729287735238,0.28330802,2645.1,2644.9,0.55]
[1729287735435,0.79284251,2645.2,2644.9,0.55]
[1729287735642,0.2833123,2645.1,2644.9,0.55]
[1729287735817,0.2833123,2645.0,2644.9,0.55]
[1729287736602,0.28330812,2645.0,2644.9,0.55]
[1729287737438,0.79284251,2645.2,2644.9,0.55]
[1729287737803,0.28330632,2645.1,2644.9,0.55]
[1729287738019,0.79284251,2645.2,2644.9,0.55]
[1729287738198,0.28330456,2645.1,2644.9,0.55]
[1729287738414,0.79284251,2645.2,2644.9,0.55]
[1729287738639,0.28330733,2645.1,2644.9,0.55]
[1729287738799,0.79284251,2645.2,2644.9,0.55]
[1729287739007,0.28330707,2645.1,2644.9,0.55]
[1729287739210,0.79284251,2645.2,2644.9,0.55]
[1729287739440,0.28330706,2645.1,2644.9,0.55]
[1729287739622,0.79284251,2645.2,2644.9,0.55]
[1729287739811,0.28330704,2645.1,2644.9,0.55]
[1729287740008,0.79284251,2645.2,2644.9,0.55]
[1729287740204,0.28330795,2645.1,2644.9,0.55]
[1729287740435,0.10274627,2645.1,2644.9,0.55]
[1729287741313,0.28331641,2645.0,2644.9,0.55]
[1729287744821,0.10274627,2645.1,2644.9,0.55]
[1729287745023,0.28330768,2645.0,2644.9,0.55]
[1729287752084,0.10274627,2645.1,2644.9,0.55]
[1729287752249,0.28332274,2645.0,2644.9,0.55]
[1729287752972,0.28333018,2645.0,2644.9,0.55]
[1729287753194,0.10274627,2645.1,2644.9,0.55]
[1729287753411,0.10274627,2645.1,2645.0,0.8164]
[1729287753689,0.38607891,2645.1,2645.0,1.3664]
[1729287756875,0.63884627,2645.1,2644.5,0.8164]
[1729287757089,1.71501487,2645.1,2644.5,0.8164]
[1729287757428,0.28332866,2645.0,2644.5,0.8164]
[1729287757585,0.28332866,2644.9,2644.5,0.8164]
[1729287757785,0.79284251,2645.0,2644.5,0.8164]
[1729287758009,0.28334215,2644.9,2644.5,0.8164]
[1729287758208,0.79284251,2645.0,2644.5,0.8164]
[1729287758527,0.28331253,2644.9,2644.5,0.8164]
[1729287758833,1.43168878,2645.1,2644.5,0.8164]
[1729287759041,0.28330047,2645.0,2644.5,0.8164]
[1729287759188,0.28329144,2644.9,2644.5,0.8164]
[1729287759516,0.79284251,2645.0,2644.5,0.8164]
[1729287759718,0.28330163,2644.9,2644.5,0.8164]
[1729287759902,0.79284251,2645.0,2644.5,0.8164]
[1729287760083,0.28330191,2644.9,2644.5,0.8164]
[1729287760431,0.79284251,2645.0,2644.5,0.8164]
[1729287760605,0.28327839,2644.9,2644.5,0.8164]
[1729287760826,0.79284251,2645.0,2644.6,0.55]
[1729287761017,0.28327838,2644.9,2644.6,0.55]
[1729287761203,0.79284251,2645.0,2644.6,0.55]
[1729287761514,0.28325594,2644.9,2644.6,0.55]
[1729287761685,0.79284251,2645.0,2644.6,0.55]
[1729287761887,0.28325592,2644.9,2644.6,0.55]
[1729287762119,0.79284251,2645.0,2644.6,0.55]
[1729287762325,0.283239,2644.9,2644.6,0.55]
[1729287762520,0.79284251,2645.0,2644.6,0.55]
[1729287762722,0.28323733,2644.9,2644.6,0.55]
[1729287762930,0.79284251,2645.0,2644.6,0.55]
[1729287763135,0.28323694,2644.9,2644.6,0.55]
[1729287763320,0.79284251,2645.0,2644.6,0.55]
[1729287763485,0.28322187,2644.9,2644.6,0.55]
[1729287763689,0.79284251,2645.0,2644.6,0.55]
[1729287763886,0.28322195,2644.9,2644.6,0.55]
[1729287764143,0.79284251,2645.0,2644.6,0.55]
[1729287764322,0.28320921,2644.9,2644.6,0.55]
[1729287764500,1.43168878,2645.1,2644.6,0.55]
[1729287764735,1.07604951,2645.0,2644.6,0.55]
[1729287764940,0.283207,2644.9,2644.6,0.55]
[1729287765120,0.79284251,2645.0,2644.6,0.55]
[1729287765121,0.283207,2644.8,2644.6,0.55]
[1729287765322,0.79284251,2645.0,2644.6,0.55]
[1729287765520,0.28318889,2644.9,2644.6,0.55]
[1729287765713,0.79284251,2645.0,2644.6,0.55]
[1729287765919,0.28318888,2644.9,2644.6,0.55]
[1729287766120,0.79284251,2645.0,2644.6,0.55]
[1729287766346,0.28316727,2644.9,2644.6,0.55]
[1729287766542,0.79284251,2645.0,2644.6,0.55]
[1729287766859,0.28316945,2644.9,2644.6,0.55]
[1729287767047,0.79284251,2645.0,2644.6,0.55]
[1729287767245,0.28315527,2644.9,2644.6,0.55]
[1729287767467,0.79284251,2645.0,2644.6,0.55]
[1729287767639,0.28315385,2644.9,2644.6,0.55]
[1729287767827,0.79284251,2645.0,2644.6,0.55]
[1729287768163,0.28315358,2644.9,2644.6,0.55]
[1729287768378,0.79284251,2645.0,2644.6,0.55]
[1729287768659,0.2831328,2644.9,2644.6,0.55]
[1729287768860,1.43168878,2645.1,2644.6,0.55]
[1729287769161,0.28313042,2645.0,2644.6,0.55]
[1729287769367,1.43168878,2645.1,2644.6,0.55]
[1729287769569,0.28312868,2645.0,2644.6,0.55]
[1729287769772,1.43168878,2645.1,2644.6,0.55]
[1729287770066,0.28312588,2645.0,2644.6,0.55]
[1729287770267,1.43168878,2645.1,2644.6,0.55]
[1729287770575,0.28312233,2645.0,2644.6,0.55]
[1729287770733,1.43168878,2645.1,2644.6,0.55]
[1729287771076,0.28312249,2645.0,2644.6,0.55]
[1729287771246,1.43168878,2645.1,2644.6,0.55]
[1729287771450,0.28311943,2645.0,2644.6,0.55]
[1729287771742,1.43168878,2645.1,2644.6,0.55]
[1729287771944,0.28311945,2645.0,2644.6,0.55]
[1729287772176,1.43168878,2645.1,2644.6,0.55]
[1729287772354,0.2831194,2645.0,2644.6,0.55]
[1729287772554,1.43168878,2645.1,2644.6,0.55]
[1729287772755,0.28311938,2645.0,2644.6,0.55]
[1729287772966,1.43168878,2645.1,2644.6,0.55]
[1729287773273,0.28311678,2645.0,2644.6,0.55]
[1729287773463,1.43168878,2645.1,2644.6,0.55]
[1729287773796,0.2831184,2645.0,2644.6,0.55]
[1729287773987,1.43168878,2645.1,2644.6,0.55]
[1729287774211,0.28311578,2645.0,2644.6,0.55]
[1729287774490,1.43168878,2645.1,2644.6,0.55]
[1729287774686,0.28311809,2645.0,2644.6,0.55]
[1729287774892,1.43168878,2645.1,2644.6,0.55]
[1729287775098,0.28311695,2645.0,2644.6,0.55]
[1729287775259,1.43168878,2645.1,2644.6,0.55]
[1729287775597,0.28311356,2645.0,2644.6,0.55]
[1729287775783,1.43168878,2645.1,2644.6,0.55]
[1729287775986,0.28311598,2645.0,2644.6,0.55]
[1729287776190,1.43168878,2645.1,2644.6,0.55]
[1729287776502,0.28311079,2645.0,2644.6,0.55]
[1729287776791,1.43168878,2645.1,2644.6,0.55]
[1729287777155,0.2831143,2645.0,2644.6,0.55]
[1729287777397,1.43168878,2645.1,2644.6,0.55]
[1729287777757,0.28311407,2645.0,2644.6,0.55]
[1729287777987,1.43168878,2645.1,2644.6,0.55]
[1729287778171,0.28311171,2645.0,2644.6,0.55]
[1729287778381,1.43168878,2645.1,2644.6,0.55]
[1729287778657,0.28311522,2645.0,2644.6,0.55]
[1729287778858,1.43168878,2645.1,2644.6,0.55]
[1729287779160,0.28311548,2645.0,2644.7,0.8042]
[1729287779499,1.43168878,2645.1,2644.7,0.8042]
[1729287779721,0.28311473,2645.0,2644.7,0.8042]
[1729287779911,1.43168878,2645.1,2644.7,0.8042]
[1729287780112,0.28312223,2645.0,2644.7,0.8042]
[1729287780426,1.43168878,2645.1,2644.7,0.8042]
[1729287780608,0.28311922,2645.0,2644.7,0.8042]
[1729287780809,1.43168878,2645.1,2644.7,0.8042]
[1729287781423,0.28311779,2645.0,2644.7,0.8042]
[1729287781631,1.43168878,2645.1,2644.7,0.8042]
[1729287781816,0.2831216,2645.0,2644.7,0.8042]
[1729287782134,1.43168878,2645.1,2644.7,0.8042]
[1729287782298,0.28312277,2645.0,2644.7,0.8042]
[1729287782509,1.43168878,2645.1,2644.7,0.8042]
[1729287782700,0.28312087,2645.0,2644.7,0.8042]
[1729287782884,1.43168878,2645.1,2644.7,0.8042]
[1729287783112,0.28312128,2645.0,2644.7,0.8042]
[1729287783440,1.43168878,2645.1,2644.7,0.8042]
[1729287783626,0.28312129,2645.0,2644.7,0.8042]
[1729287783921,1.43168878,2645.1,2644.7,0.8042]
[1729287784327,0.28311565,2645.0,2644.7,0.8042]
[1729287784528,1.43168878,2645.1,2644.7,0.8042]
[1729287784729,0.28312273,2645.0,2644.7,0.8042]
[1729287784932,1.43168878,2645.1,2644.7,0.8042]
[1729287785135,0.28312526,2645.0,2644.7,0.8042]
[1729287785432,1.43168878,2645.1,2644.7,0.8042]
[1729287785733,0.28312678,2645.0,2644.7,0.8042]
[1729287785947,1.43168878,2645.1,2644.7,0.8042]
[1729287786639,0.2831289,2645.0,2644.7,0.8042]
[1729287786795,1.43168878,2645.1,2644.7,0.8042]
[1729287786995,0.28313333,2645.0,2644.7,0.8042]
[1729287787224,1.43168878,2645.1,2644.7,0.8042]
[1729287787565,0.28313801,2645.0,2644.7,0.8042]
[1729287787736,0.28314113,2644.9,2644.7,0.8042]
[1729287787937,1.43168878,2645.1,2644.7,0.8042]
[1729287788140,0.283138,2645.0,2644.7,0.8042]
[1729287788442,1.43168878,2645.1,2644.7,0.8042]
[1729287789061,0.28314049,2645.0,2644.7,1.28911909]
[1729287789262,0.89558878,2645.1,2644.7,1.28911909]
[1729287789437,0.28313975,2645.0,2644.7,1.28911909]
[1729287789637,0.89558878,2645.1,2644.7,1.28911909]
[1729287789951,0.28313637,2645.0,2644.7,1.28911909]
[1729287790152,0.89558878,2645.1,2644.7,1.28911909]
[1729287790354,0.28313973,2645.0,2644.7,1.28911909]
[1729287790561,0.89558878,2645.1,2644.7,1.28911909]
[1729287790729,0.28313949,2645.0,2644.7,1.28911909]
[1729287790930,0.89558878,2645.1,2644.7,1.28911909]
[1729287791128,0.28314142,2645.0,2644.7,1.28911909]
[1729287791358,0.89558878,2645.1,2644.7,1.28911909]
[1729287791571,0.28314622,2645.0,2644.7,1.28911909]
[1729287791859,0.89558878,2645.1,2644.7,1.28911909]
[1729287792028,0.28314633,2645.0,2644.7,1.28911909]
[1729287792230,0.89558878,2645.1,2644.7,1.28911909]
[1729287792430,0.28315037,2645.0,2644.7,1.28911909]
[1729287792631,0.89558878,2645.1,2644.7,1.28911909]
[1729287792831,0.28315029,2645.0,2644.7,1.28911909]
[1729287793068,0.89558878,2645.1,2644.7,1.28911909]
[1729287793278,0.28315695,2645.0,2644.7,1.28911909]
[1729287793426,0.89558878,2645.1,2644.7,1.28911909]
[1729287793627,0.28315695,2645.0,2644.7,1.28911909]
[1729287793827,0.89558878,2645.1,2644.7,1.28911909]
[1729287794076,0.28315697,2645.0,2644.7,1.28911909]
[1729287794227,0.89558878,2645.1,2644.7,1.28911909]
[1729287794431,0.28316434,2645.0,2644.7,0.8042]
[1729287794657,0.89558878,2645.1,2644.7,0.8042]
[1729287794877,0.28316417,2645.0,2644.7,0.8042]
[1729287795191,0.89558878,2645.1,2644.7,0.8042]
[1729287795399,0.28316527,2645.0,2644.7,0.8042]
[1729287795596,0.89558878,2645.1,2644.7,0.8042]
[1729287795798,0.28316934,2645.0,2644.8,0.55]
[1729287795950,0.10274627,2645.1,2644.9,1.3357]
[1729287798481,0.28318335,2645.0,2644.9,1.3357]
[1729287800054,0.10274627,2645.1,2644.9,1.3357]
[1729287800478,0.28321013,2645.0,2644.9,1.3357]
[1729287801178,0.28321013,2645.0,2644.7,0.7857]
[1729287801385,0.89558878,2645.1,2644.7,0.7857]
[1729287801583,0.28326003,2645.0,2644.7,0.7857]
[1729287801787,0.28326003,2644.9,2644.7,0.7857]
[1729287802079,0.89558878,2645.1,2644.7,0.7857]
[1729287802388,1.076133,2645.0,2644.7,0.7857]
[1729287802552,0.28329049,2644.9,2644.7,0.7857]
[1729287802746,0.79284251,2645.0,2644.7,0.7857]
[1729287802949,0.28329044,2644.9,2644.7,0.7857]
[1729287803259,0.89558878,2645.1,2644.7,0.7857]
[1729287803472,1.07613623,2645.0,2644.7,0.7857]
[1729287803762,0.79284251,2645.0,2644.7,0.7857]
[1729287803975,0.28329605,2644.9,2644.7,0.7857]
[1729287804152,0.79284251,2645.0,2644.7,0.7857]
[1729287804354,0.28329419,2644.9,2644.7,0.7857]
[1729287804592,0.79284251,2645.0,2644.7,0.7857]
[1729287804791,0.28329418,2644.9,2644.7,0.7857]
[1729287805087,0.89558878,2645.1,2644.7,0.7857]
[1729287805291,0.28329315,2645.0,2644.7,0.7857]
[1729287805586,0.28329315,2644.9,2644.7,0.7857]
[1729287805788,0.79284251,2645.0,2644.7,0.7857]
[1729287805965,0.28329458,2644.9,2644.7,0.7857]
[1729287806161,0.89558878,2645.1,2644.7,0.7857]
[1729287806379,0.28329437,2645.0,2644.7,0.7857]
[1729287806579,0.28329437,2644.9,2644.7,0.7857]
[1729287806789,0.89558878,2645.1,2644.7,0.7857]
[1729287806996,0.28329213,2645.0,2644.7,0.7857]
[1729287807292,0.28329213,2644.9,2644.7,0.7857]
[1729287807466,0.79284251,2645.0,2644.7,0.7857]
[1729287807670,0.28329493,2644.9,2644.7,0.7857]
[1729287807878,0.89558878,2645.1,2644.7,0.7857]
[1729287808193,0.2832841,2645.0,2644.7,0.7857]
[1729287808356,0.89558878,2645.1,2644.7,0.7857]
[1729287808693,0.28328031,2645.0,2644.7,0.7857]
[1729287808882,0.28329185,2644.9,2644.7,0.7857]
[1729287809055,0.89558878,2645.1,2644.7,0.7857]
[1729287809258,0.28329242,2645.0,2644.7,0.7857]
[1729287809457,0.28329242,2644.9,2644.7,0.7857]
[1729287809652,0.79284251,2645.0,2644.7,0.7857]
[1729287809884,0.28329585,2644.9,2644.7,0.7857]
[1729287810108,0.79284251,2645.0,2644.7,0.7857]
[1729287810283,0.28329432,2644.9,2644.7,0.7857]
[1729287810595,0.79284251,2645.0,2644.7,0.7857]
[1729287810795,0.28329436,2644.9,2644.7,0.7857]
[1729287811005,0.79284251,2645.0,2644.7,0.7857]
[1729287811196,0.28329594,2644.9,2644.7,0.7857]
[1729287811399,0.79284251,2645.0,2644.7,0.7857]
[1729287811599,0.28330624,2644.9,2644.7,0.7857]
[1729287811915,0.79284251,2645.0,2644.7,0.7857]
[1729287812120,0.28330869,2644.9,2644.7,0.7857]
[1729287812322,0.79284251,2645.0,2644.7,0.7857]
[1729287812523,0.28331108,2644.9,2644.7,0.7857]
[1729287812727,0.79284251,2645.0,2644.7,0.7857]
[1729287812936,0.28330957,2644.9,2644.7,0.7857]
[1729287813084,0.79284251,2645.0,2644.7,0.7857]
[1729287813397,0.28331886,2644.9,2644.7,0.7857]
[1729287813596,0.79284251,2645.0,2644.7,0.7857]
[1729287813800,0.28331885,2644.9,2644.7,0.7857]
[1729287814012,0.79284251,2645.0,2644.7,0.7857]
[1729287814313,0.28332014,2644.9,2644.7,0.7857]
[1729287814513,0.79284251,2645.0,2644.7,0.7857]
[1729287814729,0.28332733,2644.9,2644.7,0.7857]
[1729287814902,0.79284251,2645.0,2644.7,0.7857]
[1729287815220,0.28332357,2644.9,2644.7,0.7857]
[1729287815412,0.28332357,2644.8,2644.7,1.3357]
[1729287816087,0.79284251,2644.9,2644.7,1.3357]
[1729287816323,0.28333466,2644.8,2644.7,1.3357]
[1729287817653,0.79284251,2645.0,2644.7,1.3357]
[1729287817973,0.2833066,2644.9,2644.7,1.3357]
[1729287818175,0.2833066,2644.8,2644.7,1.3357]
[1729287820876,0.79284251,2645.0,2644.7,1.3357]
[1729287821118,0.28329437,2644.9,2644.7,1.3357]
[1729287821393,0.28329224,2644.8,2644.7,1.3357]
[1729287822497,0.79284251,2645.0,2644.7,1.3357]
[1729287822653,0.2832889,2644.9,2644.7,1.3357]
[1729287822852,0.2832889,2644.8,2644.7,1.3357]
[1729287824082,0.28329083,2644.8,2644.7,1.3357]
[1729287824455,0.56657658,2644.8,2644.7,1.3357]
[1729287824835,0.28328575,2644.8,2644.7,1.3357]
[1729287824955,0.79284251,2645.0,2644.7,1.3357]
[1729287825298,0.28328304,2644.9,2644.7,1.3357]
[1729287825502,0.79284251,2645.0,2644.7,1.3357]
[1729287825697,0.28328415,2644.9,2644.7,1.3357]
[1729287825873,0.79284251,2645.0,2644.7,1.3357]
[1729287826191,0.28328192,2644.9,2644.7,1.3357]
[1729287826401,0.28328192,2644.8,2644.7,1.3357]
[1729287826887,0.79284251,2645.0,2644.7,1.3357]
[1729287827094,0.28328443,2644.9,2644.7,1.3357]
[1729287827256,0.79284251,2645.0,2644.7,1.3357]
[1729287827457,0.28328212,2644.9,2644.7,1.3357]
[1729287827703,0.79284251,2645.0,2644.7,1.3357]
[1729287827850,0.2832801,2644.9,2644.7,1.3357]
[1729287828054,0.79284251,2645.0,2644.7,1.3357]
[1729287828282,0.28327745,2644.9,2644.7,1.3357]
[1729287828499,0.89558878,2645.1,2644.7,1.3357]
[1729287828712,0.28327374,2645.0,2644.7,1.3357]
[1729287829015,0.28327374,2644.9,2644.7,1.3357]
[1729287829313,0.89558878,2645.1,2644.7,1.3357]
[1729287829479,1.07611998,2645.0,2644.7,1.3357]
[1729287829677,0.28327747,2644.9,2644.7,1.3357]
[1729287830011,0.79284251,2645.0,2644.7,1.3357]
[1729287830223,0.2832829,2644.9,2644.7,1.3357]
[1729287830377,0.79284251,2645.0,2644.7,1.3357]
[1729287830576,0.09388644,2644.8,2644.7,1.3357]
[1729287833781,0.09388644,2644.8,2644.7,0.7857]
[1729287840399,0.37716367,2644.8,2644.7,0.7857]
[1729287840634,0.37716367,2644.8,2644.7,1.3357]
[1729287840635,0.09388644,2644.8,2644.7,1.3357]
[1729287851766,0.09388644,2644.8,2644.6,0.55]
[1729287854228,0.09388644,2644.8,2644.7,0.55]
[1729287854907,0.09388644,2644.8,2644.6,0.55]
[1729287858462,0.09388644,2644.8,2644.7,1.02556684]
[1729287866145,0.09388644,2644.8,2644.7,1.81106684]
[1729287873714,0.09388644,2644.8,2644.7,7.77296093]
[1729287874809,0.09388644,2644.8,2644.7,8.92266993]
[1729287893821,0.09388644,2644.8,2644.7,5.29598593]
[1729287894140,0.09388644,2644.8,2644.7,17.61684393]
[1729287895413,9e-08,2644.8,2644.7,17.61684393]
[1729287895614,0.10274627,2645.1,2644.8,3.55]
[1729287895921,0.10274627,2645.1,2645.0,0.55]
[1729287896128,0.10274627,2645.1,2645.0,0.98834345]
[1729287916040,0.37697267,2645.5,2645.0,0.98834345]
[1729287916371,0.28328316,2645.4,2645.0,0.98834345]
[1729287916570,0.37697267,2645.5,2645.0,0.98834345]
[1729287916729,0.28328264,2645.4,2645.0,0.98834345]
[1729287916927,0.37697267,2645.5,2645.0,0.98834345]
[1729287917125,0.28328342,2645.4,2645.0,0.98834345]
[1729287917364,0.37697267,2645.5,2645.0,0.98834345]
[1729287917563,0.28328602,2645.4,2645.0,0.98834345]
[1729287917863,0.37697267,2645.5,2645.0,0.98834345]
[1729287918038,0.2832859,2645.4,2645.0,0.98834345]
[1729287918368,0.37697267,2645.5,2645.0,0.98834345]
[1729287918568,0.28328943,2645.4,2645.0,0.98834345]
[1729287918729,0.37697267,2645.5,2645.0,0.98834345]
[1729287919075,0.28328885,2645.4,2645.0,0.98834345]
[1729287919270,0.37697267,2645.5,2645.0,0.98834345]
[1729287919474,0.28329173,2645.4,2645.0,0.98834345]
[1729287919633,0.37697267,2645.5,2645.0,0.98834345]
[1729287919833,0.28329174,2645.4,2645.0,0.98834345]
[1729287920477,0.37697267,2645.5,2645.0,0.98834345]
[1729287920773,0.07843862,2645.3,2645.0,0.98834345]
[1729287934654,0.07843862,2645.3,2645.2,0.55]
[1729287934862,0.36177653,2645.3,2645.0,0.98834345]
[1729287935187,0.07843862,2645.3,2645.0,0.98834345]
[1729287956907,0.28329544,2645.2,2645.0,0.98834345]
[1729287957107,0.45541129,2645.3,2645.0,0.98834345]
[1729287957308,0.28328128,2645.2,2645.0,0.98834345]
[1729287957505,0.45541129,2645.3,2645.0,0.98834345]
[1729287957730,0.28328539,2645.2,2645.0,0.98834345]
[1729287957894,0.07843862,2645.3,2645.0,0.98834345]
[1729287960136,0.66024112,2645.2,2645.0,0.98834345]
[1729287960432,0.28329341,2645.1,2645.0,0.98834345]
[1729287961533,0.45541129,2645.3,2645.0,0.98834345]
[1729287961735,0.28326239,2645.2,2645.0,0.98834345]
[1729287961933,0.28326239,2645.1,2645.0,0.98834345]
[1729287962715,0.45541129,2645.3,2645.0,0.98834345]
[1729287963043,0.28323421,2645.2,2645.0,0.98834345]
[1729287963193,0.28323421,2645.1,2645.0,0.98834345]
[1729287963397,0.77844782,2645.3,2645.0,0.98834345]
[1729287963701,0.28320981,2645.2,2645.0,0.98834345]
[1729287963912,0.77844782,2645.3,2645.0,0.98834345]
[1729287964237,0.28320974,2645.2,2645.0,0.98834345]
[1729287964426,0.77844782,2645.3,2645.0,0.98834345]
[1729287964626,0.2831893,2645.2,2645.0,0.98834345]
[1729287964826,0.77844782,2645.3,2645.0,0.98834345]
[1729287965135,0.2831894,2645.2,2645.0,0.98834345]
[1729287965441,0.77844782,2645.3,2645.0,0.98834345]
[1729287965624,0.28317246,2645.2,2645.0,0.98834345]
[1729287965826,0.77844782,2645.3,2645.0,0.98834345]
[1729287966023,0.28317249,2645.2,2645.0,0.98834345]
[1729287966237,0.77844782,2645.3,2645.0,0.98834345]
[1729287966440,0.28315805,2645.2,2645.0,0.98834345]
[1729287966737,0.77844782,2645.3,2645.0,0.98834345]
[1729287967034,0.28315988,2645.2,2645.0,0.98834345]
[1729287967338,0.77844782,2645.3,2645.0,0.98834345]
[1729287967577,0.28314907,2645.2,2645.0,0.98834345]
[1729287967725,0.77844782,2645.3,2645.0,0.98834345]
[1729287967926,0.28314934,2645.2,2645.0,0.98834345]
[1729287968244,0.77844782,2645.3,2645.0,0.98834345]
[1729287968402,0.28313848,2645.2,2645.0,0.98834345]
[1729287968602,0.77844782,2645.3,2645.0,0.98834345]
[1729287968818,0.28313865,2645.2,2645.0,0.98834345]
[1729287969019,0.77844782,2645.3,2645.0,0.98834345]
[1729287969219,0.28313848,2645.2,2645.0,0.98834345]
[1729287969417,0.77844782,2645.3,2645.0,0.98834345]
[1729287969633,0.28312895,2645.2,2645.0,0.98834345]
[1729287969820,0.77844782,2645.3,2645.0,0.98834345]
[1729287970142,0.28313136,2645.2,2645.0,0.98834345]
[1729287970346,0.77844782,2645.3,2645.0,0.98834345]
[1729287970511,0.28312018,2645.2,2645.0,0.98834345]
[1729287970719,0.77844782,2645.3,2645.0,0.98834345]
[1729287970930,0.28311711,2645.2,2645.0,0.98834345]
[1729287971239,0.77844782,2645.3,2645.0,0.98834345]
[1729287971450,0.28311781,2645.2,2645.0,0.98834345]
[1729287971659,0.07843862,2645.3,2645.0,0.98834345]
[1729287971956,0.28311028,2645.2,2645.0,0.98834345]
[1729287972160,0.07843862,2645.3,2645.0,0.98834345]
[1729287972459,0.28310737,2645.2,2645.0,0.98834345]
[1729287972656,0.45541129,2645.3,2645.0,0.98834345]
[1729287972853,0.28310956,2645.2,2645.0,0.98834345]
[1729287973160,0.07843862,2645.3,2645.0,0.98834345]
[1729287973359,0.28310543,2645.2,2645.0,0.98834345]
[1729287973537,0.45541129,2645.3,2645.0,0.98834345]
[1729287973740,0.28310747,2645.2,2645.0,0.98834345]
[1729287973911,0.45541129,2645.3,2645.0,0.98834345]
[1729287974114,0.28310727,2645.2,2645.0,0.98834345]
[1729287974361,0.45541129,2645.3,2645.0,0.98834345]
[1729287974842,0.28310509,2645.2,2645.0,0.98834345]
[1729287975084,0.07843862,2645.3,2645.0,0.98834345]
[1729287975216,0.28310519,2645.2,2645.0,0.98834345]
[1729287975518,0.07843862,2645.3,2645.0,0.98834345]
[1729287976261,0.28310037,2645.2,2645.0,0.43834345]
[1729287976555,0.28310037,2645.1,2645.0,0.43834345]
[1729287978030,0.47587843,2645.1,2645.0,0.43834345]
[1729287978558,0.8528511,2645.1,2645.0,0.43834345]
[1729287978858,0.85282235,2645.1,2645.0,0.43834345]
[1729287980422,0.47584968,2645.1,2645.0,0.43834345]
[1729287981360,0.47584968,2645.1,2644.6,0.59127646]
[1729287981525,0.37697267,2645.1,2644.6,0.59127646]
[1729287982261,0.28299629,2645.0,2644.6,0.59127646]
[1729287982459,0.37697267,2645.1,2644.6,0.59127646]
[1729287983017,0.37697267,2645.2,2644.6,0.59127646]
[1729287983258,0.28296879,2645.1,2644.6,0.59127646]
[1729287983575,0.37697267,2645.1,2644.6,0.59127646]
[1729287984149,0.37697267,2645.2,2644.6,0.59127646]
[1729287984352,0.28293925,2645.1,2644.6,0.59127646]
[1729287984651,0.7000092,2645.2,2644.6,0.59127646]
[1729287984869,0.28294034,2645.1,2644.6,0.59127646]
[1729287985028,0.37697267,2645.1,2644.6,0.59127646]
[1729287985227,0.7000092,2645.2,2644.6,0.59127646]
[1729287985427,0.28292756,2645.1,2644.6,0.59127646]
[1729287985626,0.7000092,2645.2,2644.6,0.59127646]
[1729287985857,0.28292747,2645.1,2644.6,0.59127646]
[1729287986229,0.7000092,2645.2,2644.6,0.59127646]
[1729287986785,0.28291577,2645.1,2644.6,0.59127646]
[1729287986973,0.7000092,2645.2,2644.6,0.59127646]
[1729287987134,0.2829047,2645.1,2644.6,0.59127646]
[1729287987329,0.7000092,2645.2,2644.6,0.59127646]
[1729287987644,0.28291345,2645.1,2644.6,0.59127646]
[1729287987853,0.7000092,2645.2,2644.6,0.59127646]
[1729287988035,0.28291189,2645.1,2644.6,0.59127646]
[1729287988230,0.7000092,2645.2,2644.6,0.59127646]
[1729287988437,0.28290455,2645.1,2644.6,0.59127646]
[1729287988637,0.7000092,2645.2,2644.6,0.59127646]
[1729287988950,0.28290537,2645.1,2644.6,0.59127646]
[1729287989148,0.7000092,2645.2,2644.6,0.59127646]
[1729287989381,0.28289979,2645.1,2644.6,0.59127646]
[1729287989680,0.7000092,2645.2,2644.6,0.59127646]
[1729287989841,0.28289976,2645.1,2644.6,0.59127646]
[1729287990173,0.7000092,2645.2,2644.6,0.59127646]
[1729287990482,0.28290146,2645.1,2644.6,0.59127646]
[1729287990772,0.7000092,2645.2,2644.6,0.59127646]
[1729287990944,0.28289471,2645.1,2644.6,0.59127646]
[1729287991151,0.7000092,2645.2,2644.6,0.59127646]
[1729287991349,0.28288917,2645.1,2644.6,0.59127646]
[1729287991554,0.7000092,2645.2,2644.6,0.59127646]
[1729287991741,0.28289652,2645.1,2644.6,0.59127646]
[1729287991962,0.7000092,2645.2,2644.6,0.59127646]
[1729287992273,0.47966818,2645.1,2644.6,0.59127646]
[1729287992590,0.19677168,2645.1,2644.6,0.59127646]
[1729287993272,0.7000092,2645.2,2644.6,0.59127646]
[1729287993273,0.7000092,2645.2,2644.7,0.8269]
[1729287993472,0.28288992,2645.1,2644.7,0.8269]
[1729287993775,0.7000092,2645.2,2644.7,0.8269]
[1729287994147,0.28289208,2645.1,2644.7,0.8269]
[1729287994354,0.7000092,2645.2,2644.7,0.8269]
[1729287994552,0.28289437,2645.1,2644.7,0.8269]
[1729287994800,0.7000092,2645.2,2644.7,0.8269]
[1729287994977,0.28289229,2645.1,2644.7,0.8269]
[1729287995178,0.28290549,2645.0,2644.7,0.8269]
[1729287995369,0.37697267,2645.1,2644.7,0.8269]
[1729287995782,0.7000092,2645.2,2644.7,0.8269]
[1729287995990,0.65986723,2645.1,2644.7,0.8269]
[1729287996298,0.28289456,2645.0,2644.7,0.8269]
[1729287996656,0.37697267,2645.2,2644.7,0.8269]
[1729287996862,0.28288168,2645.1,2644.7,0.8269]
[1729287997201,0.37697267,2645.2,2644.7,0.8269]
[1729287997502,0.65987072,2645.1,2644.7,0.8269]
[1729287997706,0.37697267,2645.2,2644.7,0.8269]
[1729287997872,0.28288939,2645.1,2644.7,0.8269]